Workbook

Sheet Conjunto de datos
A1: Cuenta | B1: Categoría | C1: Descripción | D1: Asignado | E1: Modificado | F1: Codificado | G1: Monto certificado | H1: Comprometido | I1: Devengado | J1: Pagado | K1: Saldo por comprometer | L1: Saldo por devengar | M1: Saldo por pagar | N1: Porcentaje de ejecucion
A2: 5.1.01.05 | B2: Remuneraciones Unificadas | C2: Subp. 1.- Administracion General | D2: 308112 | E2: 0 | F2: 308112 | G2: 249717.32 | H2: 249717.32 | I2: 223703.99 | J2: 219665.25 | K2: 58394.68 | L2: 84408.01 | M2: =G2-I2 -> 26013.33 | N2: =K2*100/F2 -> 18.95
A3: 5.1.01.06 | B3: Salarios Unificados | C3: Subp. 1.- Administracion General | D3: 13212 | E3: 3960 | F3: 17172 | G3: 11736.08 | H3: 11736.08 | I3: 10605.08 | J3: 10707.34 | K3: 5435.92 | L3: 6566.92 | M3: =G3-I3 -> 1131 | N3: 31.66
A4: 5.1.02.03.01 | B4: Decimotercer Sueldo (Personal Permanente) | C4: Subp. 1.- Administracion General | D4: 18027 | E4: -246.67 | F4: 17780.33 | G4: 2547.53 | H4: 2547.53 | I4: 1784.95 | J4: 1784.95 | K4: 15232.8 | L4: 15995.38 | M4: 762.58 | N4: 85.67
A5: 5.1.02.03.02 | B5: Decimotercer Sueldo (Personal Eventual) | C5: Subp. 1.- Administracion General | D5: 1325 | E5: 599.58 | F5: 1924.58 | G5: 62.91 | H5: 62.91 | I5: 0 | J5: 0 | K5: 1861.67 | L5: 1924.58 | M5: 62.91 | N5: 96.73
A6: 5.1.02.03.03 | B6: Decimotercer Sueldo (Concejales) | C6: Subp. 1.- Administracion General | D6: 8750 | E6: 291.67 | F6: 9041.67 | G6: 291.67 | H6: 291.67 | I6: 291.67 | J6: 291.67 | K6: 8750 | L6: 8750 | M6: 0 | N6: 96.77
A7: 5.1.02.04.01 | B7: Decimocuarto Sueldo (Personal Permanente) | C7: Subp. 1.- Administracion General | D7: 9588.68 | E7: 0 | F7: 9588.68 | G7: 6835.2 | H7: 6835.2 | I7: 6379.16 | J7: 6416.66 | K7: 2753.48 | L7: 3209.52 | M7: 456.04 | N7: 28.72
A8: 5.1.02.04.02 | B8: Decimocuarto Sueldo (Personal Eventual) | C8: Subp. 1.- Administracion General | D8: 1128.08 | E8: 430.84 | F8: 1558.92 | G8: 979.17 | H8: 979.17 | I8: 940 | J8: 940 | K8: 579.75 | L8: 618.92 | M8: 39.17 | N8: 37.19
A9: 5.1.02.04.03 | B9: Decimo Cuarto Sueldo- Concejales | C9: Subp. 1.- Administracion General | D9: 2820.2 | E9: 0 | F9: 2820.2 | G9: 2387.5 | H9: 2387.5 | I9: 2387.5 | J9: 2350 | K9: 432.7 | L9: 432.7 | M9: 0 | N9: 15.34
A10: 5.1.03.06 | B10: Refrigerio | C10: Subp. 1.- Administracion General | D10: 0 | E10: 1485 | F10: 1485 | G10: 1446.75 | H10: 1446.75 | I10: 1446.75 | J10: 1446.75 | K10: 38.25 | L10: 38.25 | M10: 0 | N10: 2.58
A11: 5.1.04.01 | B11: Por Cargas Familiares | C11: Subp. 1.- Administracion General | D11: 63.72 | E11: 5.4 | F11: 69.12 | G11: 61.2 | H11: 61.2 | I11: 55.59 | J11: 50.28 | K11: 7.92 | L11: 13.53 | M11: 5.61 | N11: 11.46
A12: 5.1.04.08 | B12: Subsidio De Antiguedad | C12: Subp. 1.- Administracion General | D12: 116.82 | E12: 14.85 | F12: 131.67 | G12: 117.58 | H12: 117.58 | I12: 107.84 | J12: 88.36 | K12: 14.09 | L12: 23.83 | M12: 9.74 | N12: 10.70
A13: 5.1.05.07 | B13: Honorarios | C13: Subp. 1.- Administracion General | D13: 8750 | E13: 0 | F13: 8750 | G13: 4375 | H13: 4375 | I13: 4375 | J13: 4375 | K13: 4375 | L13: 4375 | M13: 0 | N13: 50.00
A14: 5.1.05.10 | B14: Servicios Personales por Contrato | C14: Subp. 1.- Administracion General | D14: 15900 | E14: 3020 | F14: 18920 | G14: 14005 | H14: 14005 | I14: 11925 | J14: 11773.29 | K14: 4915 | L14: 6995 | M14: 2080 | N14: 25.98
A15: 5.1.05.12 | B15: Subrogacion | C15: Subp. 1.- Administracion General | D15: 0 | E15: 541.52 | F15: 541.52 | G15: 541.52 | H15: 541.52 | I15: 0 | J15: 0 | K15: 0 | L15: 541.52 | M15: 541.52 | N15: 0
A16: 5.1.06.01.01 | B16: Aporte Patronal (Personal Permanente) | C16: Subp. 1.- Administracion General | D16: 25267.81 | E16: 128.7 | F16: 25396.51 | G16: 20323.62 | H16: 20323.62 | I16: 18175.02 | J16: 16098.83 | K16: 5072.89 | L16: 7221.49 | M16: 2148.6 | N16: 19.97
A17: 5.1.06.01.02 | B17: Aporte Patronal (Personal Eventual) | C17: Subp. 1.- Administracion General | D17: 1852.35 | E17: 767.36 | F17: 2619.71 | G17: 1631.56 | H17: 1631.56 | I17: 1389.24 | J17: 1234.88 | K17: 988.15 | L17: 1230.47 | M17: 242.32 | N17: 37.72
A18: 5.1.06.01.03 | B18: Aporte Patronal (Concejales) | C18: Subp. 1.- Administracion General | D18: 12232.5 | E18: 0 | F18: 12232.5 | G18: 10194.3 | H18: 10194.3 | I18: 9174.92 | J18: 8155.04 | K18: 2038.2 | L18: 3057.58 | M18: 1019.38 | N18: 16.66
A19: 5.1.06.02.01 | B19: Fondos De Reserva (Personal Permanente) | C19: Subp. 1.- Administracion General | D19: 18027 | E19: 4420 | F19: 22447 | G19: 19826.06 | H19: 19826.06 | I19: 17745.11 | J19: 17860.89 | K19: 2620.94 | L19: 4701.89 | M19: 2080.95 | N19: 11.68
A20: 5.1.06.02.02 | B20: Fondos De Reserva (Personal Eventual) | C20: Subp. 1.- Administracion General | D20: 1325 | E20: 285 | F20: 1610 | G20: 1103.7 | H20: 1103.7 | I20: 993.33 | J20: 993.33 | K20: 506.3 | L20: 616.67 | M20: 110.37 | N20: 31.45
A21: 5.1.06.02.03 | B21: Fondos De Reserva (Concejales) | C21: Subp. 1.- Administracion General | D21: 8750 | E21: -4375 | F21: 4375 | G21: 0 | H21: 0 | I21: 0 | J21: 0 | K21: 4375 | L21: 4375 | M21: 0 | N21: 100.00
A22: 5.1.07.07 | B22: Compensacion Por Vacaciones No Gozadas Por Cesacion De Funciones | C22: Subp. 1.- Administracion General | D22: 3000 | E22: 314.58 | F22: 3314.58 | G22: 259 | H22: 259 | I22: 0 | J22: 0 | K22: 3055.58 | L22: 3314.58 | M22: 259 | N22: 92.19
A23: 5.3.01.01 | B23: Agua Potable | C23: Subp. 1.- Administracion General | D23: 6000 | E23: 0 | F23: 6000 | G23: 4005.26 | H23: 4005.26 | I23: 3593.25 | J23: 3593.25 | K23: 1994.74 | L23: 2406.75 | M23: 412.01 | N23: 33.25
A24: 5.3.01.04 | B24: Energía Eléctrica | C24: Subp. 1.- Administracion General | D24: 8000 | E24: 3000 | F24: 11000 | G24: 6021.09 | H24: 6021.09 | I24: 5445.26 | J24: 5445.26 | K24: 4978.91 | L24: 5554.74 | M24: 575.83 | N24: 45.26
A25: 5.3.01.05 | B25: Telecomunicaciones | C25: Subp. 1.- Administracion General | D25: 5000 | E25: 3000 | F25: 8000 | G25: 7009.6 | H25: 7009.6 | I25: 5919.64 | J25: 5919.64 | K25: 990.4 | L25: 2080.36 | M25: 1089.96 | N25: 12.38
A26: 5.3.01.06 | B26: Servicio de Correo | C26: Subp. 1.- Administracion General | D26: 50 | E26: -50 | F26: 0 | G26: 0 | H26: 0 | I26: 0 | J26: 0 | K26: 0 | L26: 0 | M26: 0 | N26: 0
A27: 5.3.02.04 | B27: Edición, Impresión, Reproducción y Publicaciones | C27: Subp. 1.- Administracion General | D27: 2500 | E27: 2500 | F27: 5000 | G27: 238.34 | H27: 238.34 | I27: 211.21 | J27: 211.21 | K27: 4761.66 | L27: 4788.79 | M27: 27.13 | N27: 95.23
A28: 5.3.02.07 | B28: Difusión, Información y Publicidad | C28: Subp. 1.- Administracion General | D28: 6000 | E28: 13680 | F28: 19680 | G28: 6000 | H28: 6000 | I28: 3868.26 | J28: 3765.5 | K28: 13680 | L28: 15811.74 | M28: 2131.74 | N28: 69.51
A29: 5.3.02.46 | B29: Servicios De Identificación, Marcación, Autentificación, Rastreo, Monitoreo, Seguimiento | C29: Subp. 1.- Administracion General | D29: 5200 | E29: -200 | F29: 5000 | G29: 5000 | H29: 5000 | I29: 1699.92 | J29: 1699.92 | K29: 0 | L29: 3300.08 | M29: 3300.08 | N29: 0
A30: 5.3.02.55 | B30: Combustible | C30: Subp. 1.- Administracion General | D30: 300 | E30: 0 | F30: 300 | G30: 0 | H30: 0 | I30: 0 | J30: 0 | K30: 300 | L30: 300 | M30: 0 | N30: 100.00
A31: 5.3.03.01 | B31: Pasajes al Interior | C31: Subp. 1.- Administracion General | D31: 500 | E31: -500 | F31: 0 | G31: 0 | H31: 0 | I31: 0 | J31: 0 | K31: 0 | L31: 0 | M31: 0 | N31: 0
A32: 5.3.03.03 | B32: Viáticos y Subsistencias en el Interior | C32: Subp. 1.- Administracion General | D32: 500 | E32: -500 | F32: 0 | G32: 0 | H32: 0 | I32: 0 | J32: 0 | K32: 0 | L32: 0 | M32: 0 | N32: 0
A33: 5.3.04.02 | B33: Edificios, Locales, Residencias y Cableado Estructurado (Instalación, Mantenimiento y Reparación) | C33: Subp. 1.- Administracion General | D33: 1500 | E33: -1500 | F33: 0 | G33: 0 | H33: 0 | I33: 0 | J33: 0 | K33: 0 | L33: 0 | M33: 0 | N33: 0
A34: 5.3.04.03 | B34: Mobiliarios | C34: Subp. 1.- Administracion General | D34: 500 | E34: -500 | F34: 0 | G34: 0 | H34: 0 | I34: 0 | J34: 0 | K34: 0 | L34: 0 | M34: 0 | N34: 0
A35: 5.3.04.04 | B35: Maquinarias y Equipos | C35: Subp. 1.- Administracion General | D35: 1500 | E35: -1500 | F35: 0 | G35: 0 | H35: 0 | I35: 0 | J35: 0 | K35: 0 | L35: 0 | M35: 0 | N35: 0
A36: 5.3.04.05 | B36: Vehículos (Servicio para Mantenimiento y Reparación) | C36: Subp. 1.- Administracion General | D36: 1500 | E36: 0 | F36: 1500 | G36: 43.48 | H36: 43.48 | I36: 43.48 | J36: 43.48 | K36: 1456.52 | L36: 1456.52 | M36: 0 | N36: 97.10
A37: 5.3.06.06 | B37: Honorarios Por Contratos Civiles De Servicios | C37: Subp. 1.- Administracion General | D37: 16463.8 | E37: -1463.8 | F37: 15000 | G37: 15000 | H37: 15000 | I37: 15000 | J37: 15000 | K37: 0 | L37: 0 | M37: 0 | N37: 0
A38: 5.3.06.12 | B38: Capacitación A Servidores Públicos | C38: Subp. 1.- Administracion General | D38: 0 | E38: 5000 | F38: 5000 | G38: 0 | H38: 0 | I38: 0 | J38: 0 | K38: 5000 | L38: 5000 | M38: 0 | N38: 100.00
A39: 5.3.06.13 | B39: Capacitación Para La Ciudadanía En General | C39: Subp. 1.- Administracion General | D39: 500 | E39: -500 | F39: 0 | G39: 0 | H39: 0 | I39: 0 | J39: 0 | K39: 0 | L39: 0 | M39: 0 | N39: 0
A40: 5.3.07.01 | B40: Desarrollo De Sistemas Informáticos | C40: Subp. 1.- Administracion General | D40: 5000 | E40: -5000 | F40: 0 | G40: 0 | H40: 0 | I40: 0 | J40: 0 | K40: 0 | L40: 0 | M40: 0 | N40: 0
A41: 5.3.07.02 | B41: Arrendamiento y Licencias de Uso de Paquetes Informáticos | C41: Subp. 1.- Administracion General | D41: 5000 | E41: -4800 | F41: 200 | G41: 200 | H41: 200 | I41: 200 | J41: 200 | K41: 0 | L41: 0 | M41: 0 | N41: 0
A42: 5.3.07.04 | B42: Mantenimiento y Reparación de Equipos y Sistemas Informáticos | C42: Subp. 1.- Administracion General | D42: 2500 | E42: -820.73 | F42: 1679.27 | G42: 1620 | H42: 1620 | I42: 0 | J42: 0 | K42: 59.27 | L42: 1679.27 | M42: 1620 | N42: 3.53
A43: 5.3.08.02.01 | B43: Vestuario Y Lenceria | C43: Subp. 1.- Administracion General | D43: 4000 | E43: -500 | F43: 3500 | G43: 3155.42 | H43: 3155.42 | I43: 894.16 | J43: 894.16 | K43: 344.58 | L43: 2605.84 | M43: 2261.26 | N43: 9.85
A44: 5.3.08.03 | B44: Lubricantes | C44: Subp. 1.- Administracion General | D44: 1200 | E44: 0 | F44: 1200 | G44: 1200 | H44: 1200 | I44: 1188.92 | J44: 1188.92 | K44: 0 | L44: 11.08 | M44: 11.08 | N44: 0
A45: 5.3.08.04 | B45: Materiales de Oficina | C45: Subp. 1.- Administracion General | D45: 200 | E45: 100 | F45: 300 | G45: 120.4 | H45: 120.4 | I45: 120.4 | J45: 120.4 | K45: 179.6 | L45: 179.6 | M45: 0 | N45: 59.87
A46: 5.3.08.05 | B46: Materiales de Aseo | C46: Subp. 1.- Administracion General | D46: 200 | E46: 0 | F46: 200 | G46: 200 | H46: 200 | I46: 200 | J46: 200 | K46: 0 | L46: 0 | M46: 0 | N46: 0
A47: 5.3.08.07 | B47: Materiales de Impresión, Fotografía, Reproducción y Publicaciones | C47: Subp. 1.- Administracion General | D47: 2500 | E47: -1112.3 | F47: 1387.7 | G47: 1387.7 | H47: 1387.7 | I47: 1387.69 | J47: 1387.69 | K47: 0 | L47: 0.01 | M47: 0.01 | N47: 0
A48: 5.3.08.11 | B48: Materiales de Construcción, Eléctricos, Plomería y Carpintería | C48: Subp. 1.- Administracion General | D48: 600 | E48: 599.78 | F48: 1199.78 | G48: 910.41 | H48: 910.41 | I48: 901 | J48: 901 | K48: 289.37 | L48: 298.78 | M48: 9.41 | N48: 24.12
A49: 5.3.08.13 | B49: Repuestos y Accesorios | C49: Subp. 1.- Administracion General | D49: 1200 | E49: 11984.52 | F49: 13184.52 | G49: 6817.16 | H49: 6817.16 | I49: 191.96 | J49: 191.96 | K49: 6367.36 | L49: 12992.56 | M49: 6625.2 | N49: 48.29
A50: 5.3.14.03 | B50: Mobiliarios | C50: Subp. 1.- Administracion General | D50: 100 | E50: -100 | F50: 0 | G50: 0 | H50: 0 | I50: 0 | J50: 0 | K50: 0 | L50: 0 | M50: 0 | N50: 0
A51: 5.3.14.04 | B51: Maquinarias y Equipos | C51: Subp. 1.- Administracion General | D51: 100 | E51: 366.78 | F51: 466.78 | G51: 457.11 | H51: 457.11 | I51: 457.11 | J51: 457.11 | K51: 9.67 | L51: 9.67 | M51: 0 | N51: 2.07
A52: 5.3.14.06 | B52: Herramientas y Equipos Menores | C52: Subp. 1.- Administracion General | D52: 100 | E52: -100 | F52: 0 | G52: 0 | H52: 0 | I52: 0 | J52: 0 | K52: 0 | L52: 0 | M52: 0 | N52: 0
A53: 5.3.14.07 | B53: Equipos, Sistemas Y Paquetes Informáticos | C53: Subp. 1.- Administracion General | D53: 100 | E53: 0 | F53: 100 | G53: 72 | H53: 72 | I53: 0 | J53: 0 | K53: 28 | L53: 100 | M53: 72 | N53: 28.00
A54: 5.3.14.08 | B54: Bienes Artísticos y Culturales | C54: Subp. 1.- Administracion General | D54: 100 | E54: -100 | F54: 0 | G54: 0 | H54: 0 | I54: 0 | J54: 0 | K54: 0 | L54: 0 | M54: 0 | N54: 0
A55: 5.7.01.02.01 | B55: Tasas Generales, Impuestos, Contribuciones, Permisos, Licencias Y Patentes | C55: Subp. 1.- Administracion General | D55: 56 | E55: -56 | F55: 0 | G55: 0 | H55: 0 | I55: 0 | J55: 0 | K55: 0 | L55: 0 | M55: 0 | N55: 0
A56: 5.7.02.01.01 | B56: Segruro (Personal) | C56: Subp. 1.- Administracion General | D56: 1296 | E56: 0 | F56: 1296 | G56: 1296 | H56: 1296 | I56: 1296 | J56: 1292.25 | K56: 0 | L56: 0 | M56: 0 | N56: 0
A57: 5.7.02.01.02 | B57: Seguros (Bienes) | C57: Subp. 1.- Administracion General | D57: 1500 | E57: 0 | F57: 1500 | G57: 1500 | H57: 1500 | I57: 1420 | J57: 1420 | K57: 0 | L57: 80 | M57: 80 | N57: 0
A58: 5.7.02.03 | B58: Comisiones Bancarias | C58: Subp. 1.- Administracion General | D58: 400 | E58: -400 | F58: 0 | G58: 0 | H58: 0 | I58: 0 | J58: 0 | K58: 0 | L58: 0 | M58: 0 | N58: 0
A59: 5.7.02.06 | B59: Costas Judiciales, Trámites Notariales, Legalización De Documentos Y Arreglos Extrajudiciales | C59: Subp. 1.- Administracion General | D59: 500 | E59: 0 | F59: 500 | G59: 99 | H59: 99 | I59: 99 | J59: 99 | K59: 401 | L59: 401 | M59: 0 | N59: 80.20
A60: 7.3.08.11 | B60: Materiales De Construcción, Eléctricos, Plomería Y Carpintería | C60: Subp. 1.- Administracion General | D60: 0 | E60: 0 | F60: 0 | G60: 0 | H60: 0 | I60: 0 | J60: 27.75 | K60: 0 | L60: 0 | M60: 0 | N60: 0
A61: 8.4.01.04.01 | B61: Maquinaria Y Equipo | C61: Subp. 1.- Administracion General | D61: 0 | E61: 2140 | F61: 2140 | G61: 140 | H61: 140 | I61: 140 | J61: 140 | K61: 2000 | L61: 2000 | M61: 0 | N61: 0
A62: 8.4.01.05 | B62: Vehículos | C62: Subp. 1.- Administracion General | D62: 100 | E62: -100 | F62: 0 | G62: 0 | H62: 0 | I62: 0 | J62: 0 | K62: 0 | L62: 0 | M62: 0 | N62: 0
A63: 8.4.01.06 | B63: Herramientas | C63: Subp. 1.- Administracion General | D63: 0 | E63: 313.67 | F63: 313.67 | G63: 313.67 | H63: 313.67 | I63: 313.67 | J63: 313.67 | K63: 0 | L63: 0 | M63: 0 | N63: 0
A64: 8.4.01.07.01 | B64: Equipos, Sistemas Y Paquetes Informáticos | C64: Subp. 1.- Administracion General | D64: 10000 | E64: 8164.49 | F64: 18164.49 | G64: 13118.68 | H64: 13118.68 | I64: 4005.58 | J64: 4005.58 | K64: 5045.81 | L64: 14158.91 | M64: 9113.1 | N64: 27.78
A65: 5.1.01.06 | B65: Salarios Unificados | C65: Subp. 2.-gestión Administrativa Técnica | D65: 53665.92 | E65: 2361.7 | F65: 56027.62 | G65: 43698.39 | H65: 43698.39 | I65: 39677.79 | J65: 39113.55 | K65: 12329.23 | L65: 16349.83 | M65: 4020.6 | N65: 22.01
A66: 5.1.02.03.01 | B66: Decimotercer Sueldo (Personal Permanente) | C66: Subp. 2.-gestión Administrativa Técnica | D66: 4472.16 | E66: 196.81 | F66: 4668.97 | G66: 707.07 | H66: 707.07 | I66: 662.83 | J66: 662.83 | K66: 3961.9 | L66: 4006.14 | M66: 44.24 | N66: =K66*100/F66 -> 84.86
A67: 5.1.02.04.01 | B67: Decimocuarto Sueldo (Personal Permanente) | C67: Subp. 2.-gestión Administrativa Técnica | D67: 3760 | E67: 0 | F67: 3760 | G67: 3674.97 | H67: 3674.97 | I67: 3636.64 | J67: 3636.64 | K67: 85.03 | L67: 123.36 | M67: =G67-I67 -> 38.33 | N67: 2.26
A68: 5.1.03.06 | B68: Refrigerio | C68: Subp. 2.-gestión Administrativa Técnica | D68: 400 | E68: 6627.5 | F68: 7027.5 | G68: 6715.5 | H68: 6715.5 | I68: 6542.25 | J68: 6542.25 | K68: 312 | L68: 485.25 | M68: 173.25 | N68: 4.44
A69: 5.1.04.01 | B69: Por Cargas Familiares | C69: Subp. 2.-gestión Administrativa Técnica | D69: 195.84 | E69: 14.4 | F69: 210.24 | G69: 175.4 | H69: 175.4 | I69: 158.33 | J69: 142.01 | K69: 34.84 | L69: 51.91 | M69: 17.07 | N69: 16.57
A70: 5.1.04.08 | B70: Subsidio De Antiguedad | C70: Subp. 2.-gestión Administrativa Técnica | D70: 541.62 | E70: 64.8 | F70: 606.42 | G70: 558.32 | H70: 558.32 | I70: 476.72 | J70: 386.44 | K70: 48.1 | L70: 129.7 | M70: 81.6 | N70: 0
A71: 5.1.05.09 | B71: Horas Extraordinarias y Suplementarias | C71: Subp. 2.-gestión Administrativa Técnica | D71: 200 | E71: -200 | F71: 0 | G71: 0 | H71: 0 | I71: 0 | J71: 0 | K71: 0 | L71: 0 | M71: 0 | N71: 0
A72: 5.1.06.01.01 | B72: Aporte Patronal (Personal Permanente) | C72: Subp. 2.-gestión Administrativa Técnica | D72: 5140.91 | E72: 286.95 | F72: 5427.86 | G72: 5405.12 | H72: 5405.12 | I72: 4820.83 | J72: 4381.36 | K72: 22.74 | L72: 607.03 | M72: 584.29 | N72: 0.42
A73: 5.1.06.02.01 | B73: Fondos De Reserva (Personal Permanente) | C73: Subp. 2.-gestión Administrativa Técnica | D73: 3526 | E73: 196.81 | F73: 3722.81 | G73: 3535.24 | H73: 3535.24 | I73: 3182.51 | J73: 3182.51 | K73: 187.57 | L73: 540.3 | M73: 352.73 | N73: 0
A74: 5.3.01.05 | B74: Telecomunicaciones | C74: Subp. 2.-gestión Administrativa Técnica | D74: 350 | E74: -350 | F74: 0 | G74: 0 | H74: 0 | I74: 0 | J74: 0 | K74: 0 | L74: 0 | M74: 0 | N74: 0
A75: 5.3.02.04 | B75: Edición, Impresión, Reproducción Y Publicaciones | C75: Subp. 2.-gestión Administrativa Técnica | D75: 500 | E75: 0 | F75: 500 | G75: 30.96 | H75: 30.96 | I75: 30.96 | J75: 30.96 | K75: 469.04 | L75: 469.04 | M75: 0 | N75: 93.81
A76: 5.3.02.46 | B76: Servicios De Identificación, Marcación, Autentificación, Rastreo, Monitoreo, Seguimiento | C76: Subp. 2.-gestión Administrativa Técnica | D76: 5000 | E76: -3200 | F76: 1800 | G76: 1799.68 | H76: 1799.68 | I76: 1133.28 | J76: 1055.37 | K76: 0.32 | L76: 666.72 | M76: 666.4 | N76: 0
A77: 5.3.02.55 | B77: Combustible | C77: Subp. 2.-gestión Administrativa Técnica | D77: 500 | E77: -500 | F77: 0 | G77: 0 | H77: 0 | I77: 0 | J77: 0 | K77: 0 | L77: 0 | M77: 0 | N77: 0
A78: 5.3.03.01 | B78: Pasajes Al Interior | C78: Subp. 2.-gestión Administrativa Técnica | D78: 200 | E78: -200 | F78: 0 | G78: 0 | H78: 0 | I78: 0 | J78: 0 | K78: 0 | L78: 0 | M78: 0 | N78: 0
A79: 5.3.03.03 | B79: Viáticos Y Subsistencias En El Interior | C79: Subp. 2.-gestión Administrativa Técnica | D79: 200 | E79: -200 | F79: 0 | G79: 0 | H79: 0 | I79: 0 | J79: 0 | K79: 0 | L79: 0 | M79: 0 | N79: 0
A80: 5.3.04.02 | B80: Edificios, Locales, Residencias Y Cableado Estructurado (Instalación, Mantenimiento Y Reparación) | C80: Subp. 2.-gestión Administrativa Técnica | D80: 100 | E80: -100 | F80: 0 | G80: 0 | H80: 0 | I80: 0 | J80: 0 | K80: 0 | L80: 0 | M80: 0 | N80: 0
A81: 5.3.04.05 | B81: Vehículos (Servicio para Mantenimiento y Reparación) | C81: Subp. 2.-gestión Administrativa Técnica | D81: 26482 | E81: 0 | F81: 26482 | G81: 2500 | H81: 2500 | I81: 0 | J81: 0 | K81: 23982 | L81: 26482 | M81: 2500 | N81: 0
A82: 5.3.06.12 | B82: Capacitación A Servidores Públicos | C82: Subp. 2.-gestión Administrativa Técnica | D82: 500 | E82: -500 | F82: 0 | G82: 0 | H82: 0 | I82: 0 | J82: 0 | K82: 0 | L82: 0 | M82: 0 | N82: 0
A83: 5.3.07.04 | B83: Mantenimiento Y Reparación De Equipos Y Sistemas Informáticos | C83: Subp. 2.-gestión Administrativa Técnica | D83: 500 | E83: -500 | F83: 0 | G83: 0 | H83: 0 | I83: 0 | J83: 0 | K83: 0 | L83: 0 | M83: 0 | N83: 0
A84: 5.3.08.02.01 | B84: Vestuario Y Lenceria | C84: Subp. 2.-gestión Administrativa Técnica | D84: 5000 | E84: 0 | F84: 5000 | G84: 1107.55 | H84: 1107.55 | I84: 569.79 | J84: 569.79 | K84: 3892.45 | L84: 4430.21 | M84: 537.76 | N84: 77.85
A85: 5.3.08.05 | B85: Materiales De Aseo | C85: Subp. 2.-gestión Administrativa Técnica | D85: 13000 | E85: 0 | F85: 13000 | G85: 12560.72 | H85: 12560.72 | I85: 7875.65 | J85: 7875.65 | K85: 439.28 | L85: 5124.35 | M85: 4685.07 | N85: 3.38
A86: 5.3.08.07 | B86: Materiales De Impresión, Fotografía, Reproducción Y Publicaciones | C86: Subp. 2.-gestión Administrativa Técnica | D86: 500 | E86: 0 | F86: 500 | G86: 0 | H86: 0 | I86: 0 | J86: 0 | K86: 500 | L86: 500 | M86: 0 | N86: 0
A87: 5.3.08.11 | B87: Materiales De Construcción, Eléctricos, Plomería Y Carpintería | C87: Subp. 2.-gestión Administrativa Técnica | D87: 250 | E87: -250 | F87: 0 | G87: 0 | H87: 0 | I87: 0 | J87: 0 | K87: 0 | L87: 0 | M87: 0 | N87: 0
A88: 5.3.08.13 | B88: Repuestos Y Accesorios | C88: Subp. 2.-gestión Administrativa Técnica | D88: 7480 | E88: 0 | F88: 7480 | G88: 7288.04 | H88: 7288.04 | I88: 6924.15 | J88: 6924.15 | K88: 191.96 | L88: 555.85 | M88: 363.89 | N88: 0
A89: 5.3.14.06 | B89: Herramientas Y Equipos Menores | C89: Subp. 2.-gestión Administrativa Técnica | D89: 450 | E89: -450 | F89: 0 | G89: 0 | H89: 0 | I89: 0 | J89: 0 | K89: 0 | L89: 0 | M89: 0 | N89: 0
A90: 5.7.01.02.02 | B90: Matriculación De Vehículos | C90: Subp. 2.-gestión Administrativa Técnica | D90: 1128.19 | E90: 0 | F90: 1128.19 | G90: 809.95 | H90: 809.95 | I90: 809.95 | J90: 809.95 | K90: 318.24 | L90: 318.24 | M90: 0 | N90: 28.21
A91: 5.7.02.01.01 | B91: Segruro (Personal) | C91: Subp. 2.-gestión Administrativa Técnica | D91: 3500 | E91: 0 | F91: 3500 | G91: 3500 | H91: 3500 | I91: 3500 | J91: 3500 | K91: 0 | L91: 0 | M91: 0 | N91: 0
A92: 5.7.02.01.02 | B92: Seguros (Bienes) | C92: Subp. 2.-gestión Administrativa Técnica | D92: 2500 | E92: 0 | F92: 2500 | G92: 2500 | H92: 2500 | I92: 2500 | J92: 2500 | K92: 0 | L92: 0 | M92: 0 | N92: 0
A93: 5.8.02.09 | B93: A Jubilados Patronales | C93: Subp. 2.-gestión Administrativa Técnica | D93: 7252 | E93: 0 | F93: 7252 | G93: 5698 | H93: 5698 | I93: 5180 | J93: 5180 | K93: 1554 | L93: 2072 | M93: 518 | N93: 0
A94: 8.4.01.06 | B94: Herramientas | C94: Subp. 2.-gestión Administrativa Técnica | D94: 300 | E94: -300 | F94: 0 | G94: 0 | H94: 0 | I94: 0 | J94: 0 | K94: 0 | L94: 0 | M94: 0 | N94: 0
A95: 8.4.01.11 | B95: Partes Y Repuestos | C95: Subp. 2.-gestión Administrativa Técnica | D95: 10 | E95: -10 | F95: 0 | G95: 0 | H95: 0 | I95: 0 | J95: 0 | K95: 0 | L95: 0 | M95: 0 | N95: 0
A96: 5.1.01.05 | B96: Remuneraciones Unificadas | C96: Sub.- 3 Seguridad Y Salud Ocupacional | D96: 30000 | E96: 0 | F96: 30000 | G96: 25000 | H96: 25000 | I96: 22500 | J96: 22060.78 | K96: 5000 | L96: 7500 | M96: 2500 | N96: 16.67
A97: 5.1.02.03.01 | B97: Decimotercer Sueldo (Personal Permanente) | C97: Sub.- 3 Seguridad Y Salud Ocupacional | D97: 2500 | E97: 0 | F97: 2500 | G97: 0 | H97: 0 | I97: 0 | J97: 0 | K97: 2500 | L97: 2500 | M97: 0 | N97: 100.00
A98: 5.1.02.03.02 | B98: Decimotercer Sueldo (Personal Eventual) | C98: Sub.- 3 Seguridad Y Salud Ocupacional | D98: 820 | E98: 0 | F98: 820 | G98: 0 | H98: 0 | I98: 0 | J98: 0 | K98: 820 | L98: 820 | M98: 0 | N98: 100.00
A99: 5.1.02.04.01 | B99: Decimocuarto Sueldo (Personal Permanente) | C99: Sub.- 3 Seguridad Y Salud Ocupacional | D99: 940 | E99: 470 | F99: 1410 | G99: 1410 | H99: 1410 | I99: 1410 | J99: 1410 | K99: 0 | L99: 0 | M99: 0 | N99: 0
A100: 5.1.02.04.02 | B100: Decimocuarto Sueldo (Personal Eventual) | C100: Sub.- 3 Seguridad Y Salud Ocupacional | D100: 470 | E100: 0 | F100: 470 | G100: 470 | H100: 470 | I100: 470 | J100: 470 | K100: 0 | L100: 0 | M100: 0 | N100: 0
A101: 5.1.05.10 | B101: Servicios Personales Por Contrato | C101: Sub.- 3 Seguridad Y Salud Ocupacional | D101: 9840 | E101: 0 | F101: 9840 | G101: 8200 | H101: 8200 | I101: 7380 | J101: 7286.11 | K101: 1640 | L101: 2460 | M101: 820 | N101: 16.67
A102: 5.1.06.01.01 | B102: Aporte Patronal (Personal Permanente) | C102: Sub.- 3 Seguridad Y Salud Ocupacional | D102: 3495 | E102: 0 | F102: 3495 | G102: 2912.5 | H102: 2912.5 | I102: 2621.25 | J102: 2330 | K102: 582.5 | L102: 873.75 | M102: 291.25 | N102: 16.67
A103: 5.1.06.01.02 | B103: Aporte Patronal (Personal Eventual) | C103: Sub.- 3 Seguridad Y Salud Ocupacional | D103: 1146.36 | E103: 0 | F103: 1146.36 | G103: 955.3 | H103: 955.3 | I103: 859.77 | J103: 764.24 | K103: 191.06 | L103: 286.59 | M103: 95.53 | N103: 16.67
A104: 5.1.06.02.01 | B104: Fondos De Reserva (Personal Permanente) | C104: Sub.- 3 Seguridad Y Salud Ocupacional | D104: 2500 | E104: 0 | F104: 2500 | G104: 1805.02 | H104: 1805.02 | I104: 1596.78 | J104: 1481 | K104: 694.98 | L104: 903.22 | M104: 208.24 | N104: 27.80
A105: 5.1.06.02.02 | B105: Fondos De Reserva (Personal Eventual) | C105: Sub.- 3 Seguridad Y Salud Ocupacional | D105: 820 | E105: 0 | F105: 820 | G105: 683 | H105: 683 | I105: 614.7 | J105: 614.7 | K105: 137 | L105: 205.3 | M105: 68.3 | N105: 16.71
A106: 5.1.07.07 | B106: Compensacion Por Vacaciones No Gozadas Por Cesacion De Funciones | C106: Sub.- 3 Seguridad Y Salud Ocupacional | D106: 1120 | E106: 0 | F106: 1120 | G106: 0 | H106: 0 | I106: 0 | J106: 0 | K106: 1120 | L106: 1120 | M106: 0 | N106: 0
A107: 5.3.01.05 | B107: Telecomunicaciones | C107: Sub.- 3 Seguridad Y Salud Ocupacional | D107: 50 | E107: -50 | F107: 0 | G107: 0 | H107: 0 | I107: 0 | J107: 0 | K107: 0 | L107: 0 | M107: 0 | N107: 0
A108: 5.3.01.06 | B108: Servicio De Correo | C108: Sub.- 3 Seguridad Y Salud Ocupacional | D108: 50 | E108: -50 | F108: 0 | G108: 0 | H108: 0 | I108: 0 | J108: 0 | K108: 0 | L108: 0 | M108: 0 | N108: 0
A109: 5.3.02.46 | B109: Servicios De Identificación, Marcación, Autentificación, Rastreo, Monitoreo, Seguimiento | C109: Sub.- 3 Seguridad Y Salud Ocupacional | D109: 500 | E109: -500 | F109: 0 | G109: 0 | H109: 0 | I109: 0 | J109: 0 | K109: 0 | L109: 0 | M109: 0 | N109: 0
A110: 5.3.02.55 | B110: Combustible | C110: Sub.- 3 Seguridad Y Salud Ocupacional | D110: 50 | E110: -50 | F110: 0 | G110: 0 | H110: 0 | I110: 0 | J110: 0 | K110: 0 | L110: 0 | M110: 0 | N110: 0
A111: 5.3.03.01 | B111: Pasajes Al Interior | C111: Sub.- 3 Seguridad Y Salud Ocupacional | D111: 50 | E111: -50 | F111: 0 | G111: 0 | H111: 0 | I111: 0 | J111: 0 | K111: 0 | L111: 0 | M111: 0 | N111: 0
A112: 5.3.03.03 | B112: Viáticos Y Subsistencias En El Interior | C112: Sub.- 3 Seguridad Y Salud Ocupacional | D112: 100 | E112: -100 | F112: 0 | G112: 0 | H112: 0 | I112: 0 | J112: 0 | K112: 0 | L112: 0 | M112: 0 | N112: 0
A113: 5.3.04.02 | B113: Edificios, Locales, Residencias Y Cableado Estructurado (Instalación, Mantenimiento Y Reparación) | C113: Sub.- 3 Seguridad Y Salud Ocupacional | D113: 1500 | E113: -1500 | F113: 0 | G113: 0 | H113: 0 | I113: 0 | J113: 0 | K113: 0 | L113: 0 | M113: 0 | N113: 0
A114: 5.3.04.04 | B114: Maquinarias Y Equipos | C114: Sub.- 3 Seguridad Y Salud Ocupacional | D114: 50 | E114: -50 | F114: 0 | G114: 0 | H114: 0 | I114: 0 | J114: 0 | K114: 0 | L114: 0 | M114: 0 | N114: 0
A115: 5.3.07.04 | B115: Mantenimiento Y Reparación De Equipos Y Sistemas Informáticos | C115: Sub.- 3 Seguridad Y Salud Ocupacional | D115: 500 | E115: -500 | F115: 0 | G115: 0 | H115: 0 | I115: 0 | J115: 0 | K115: 0 | L115: 0 | M115: 0 | N115: 0
A116: 5.3.08.01 | B116: Alimentos Y Bebidas | C116: Sub.- 3 Seguridad Y Salud Ocupacional | D116: 10 | E116: -10 | F116: 0 | G116: 0 | H116: 0 | I116: 0 | J116: 0 | K116: 0 | L116: 0 | M116: 0 | N116: 0
A117: 5.3.08.02.01 | B117: Vestuario Y Lenceria | C117: Sub.- 3 Seguridad Y Salud Ocupacional | D117: 2500 | E117: 0 | F117: 2500 | G117: 988.4 | H117: 988.4 | I117: 368.46 | J117: 368.46 | K117: 1511.6 | L117: 2131.54 | M117: 619.94 | N117: 0
A118: 5.3.08.03 | B118: Lubricantes | C118: Sub.- 3 Seguridad Y Salud Ocupacional | D118: 10 | E118: -10 | F118: 0 | G118: 0 | H118: 0 | I118: 0 | J118: 0 | K118: 0 | L118: 0 | M118: 0 | N118: 0
A119: 5.3.08.04 | B119: Materiales De Oficina | C119: Sub.- 3 Seguridad Y Salud Ocupacional | D119: 100 | E119: -100 | F119: 0 | G119: 0 | H119: 0 | I119: 0 | J119: 0 | K119: 0 | L119: 0 | M119: 0 | N119: 0
A120: 5.3.08.05 | B120: Materiales De Aseo | C120: Sub.- 3 Seguridad Y Salud Ocupacional | D120: 100 | E120: 0 | F120: 100 | G120: 100 | H120: 100 | I120: 96.18 | J120: 96.18 | K120: 0 | L120: 3.82 | M120: 3.82 | N120: 0
A121: 5.3.08.08 | B121: Instrumental Médico Menor | C121: Sub.- 3 Seguridad Y Salud Ocupacional | D121: 750 | E121: -750 | F121: 0 | G121: 0 | H121: 0 | I121: 0 | J121: 0 | K121: 0 | L121: 0 | M121: 0 | N121: 0
A122: 5.3.08.09 | B122: Medicamentos | C122: Sub.- 3 Seguridad Y Salud Ocupacional | D122: 1500 | E122: -1000 | F122: 500 | G122: 344.1 | H122: 344.1 | I122: 0 | J122: 0 | K122: 155.9 | L122: 500 | M122: 344.1 | N122: 31.18
A123: 5.3.08.11 | B123: Materiales De Construcción, Eléctricos, Plomería Y Carpintería | C123: Sub.- 3 Seguridad Y Salud Ocupacional | D123: 125 | E123: 0 | F123: 125 | G123: 43.9 | H123: 43.9 | I123: 43.9 | J123: 43.9 | K123: 81.1 | L123: 81.1 | M123: 0 | N123: 0
A124: 5.3.08.12 | B124: Materiales Didácticos | C124: Sub.- 3 Seguridad Y Salud Ocupacional | D124: 100 | E124: -100 | F124: 0 | G124: 0 | H124: 0 | I124: 0 | J124: 0 | K124: 0 | L124: 0 | M124: 0 | N124: 0
A125: 5.3.08.13 | B125: Repuestos Y Accesorios | C125: Sub.- 3 Seguridad Y Salud Ocupacional | D125: 500 | E125: -500 | F125: 0 | G125: 0 | H125: 0 | I125: 0 | J125: 0 | K125: 0 | L125: 0 | M125: 0 | N125: 0
A126: 5.3.08.19 | B126: Accesorios E Insumos Quimicos,Organicos | C126: Sub.- 3 Seguridad Y Salud Ocupacional | D126: 200 | E126: -200 | F126: 0 | G126: 0 | H126: 0 | I126: 0 | J126: 0 | K126: 0 | L126: 0 | M126: 0 | N126: 0
A127: 5.3.08.26 | B127: Dispositivos Médicos De Uso General | C127: Sub.- 3 Seguridad Y Salud Ocupacional | D127: 2000 | E127: -2000 | F127: 0 | G127: 0 | H127: 0 | I127: 0 | J127: 0 | K127: 0 | L127: 0 | M127: 0 | N127: 0
A128: 5.3.14.03 | B128: Mobiliarios | C128: Sub.- 3 Seguridad Y Salud Ocupacional | D128: 200 | E128: -200 | F128: 0 | G128: 0 | H128: 0 | I128: 0 | J128: 0 | K128: 0 | L128: 0 | M128: 0 | N128: 0
A129: 5.3.14.06 | B129: Herramientas Y Equipos Menores | C129: Sub.- 3 Seguridad Y Salud Ocupacional | D129: 200 | E129: -200 | F129: 0 | G129: 0 | H129: 0 | I129: 0 | J129: 0 | K129: 0 | L129: 0 | M129: 0 | N129: 0
A130: 5.3.14.07 | B130: Equipos, Sistemas Y Paquetes Informáticos | C130: Sub.- 3 Seguridad Y Salud Ocupacional | D130: 400 | E130: 0 | F130: 400 | G130: 238 | H130: 238 | I130: 0 | J130: 0 | K130: 162 | L130: 400 | M130: 238 | N130: 0
A131: 5.3.14.09 | B131: Libros Y Colecciones | C131: Sub.- 3 Seguridad Y Salud Ocupacional | D131: 20 | E131: -20 | F131: 0 | G131: 0 | H131: 0 | I131: 0 | J131: 0 | K131: 0 | L131: 0 | M131: =G131-I131 -> 0 | N131: 0
A132: 5.7.01.02.01 | B132: Tasas Generales, Impuestos, Contribuciones, Permisos, Licencias Y Patentes | C132: Sub.- 3 Seguridad Y Salud Ocupacional | D132: 50 | E132: -50 | F132: 0 | G132: 0 | H132: 0 | I132: 0 | J132: 0 | K132: 0 | L132: 0 | M132: 0 | N132: 0
A133: 5.7.02.01.01 | B133: Segruro (Personal) | C133: Sub.- 3 Seguridad Y Salud Ocupacional | D133: 20 | E133: 0 | F133: 20 | G133: 20 | H133: 20 | I133: 20 | J133: 20 | K133: 0 | L133: 0 | M133: 0 | N133: =K133*100/F133 -> 0
A134: 5.7.02.01.02 | B134: Seguros (Bienes) | C134: Sub.- 3 Seguridad Y Salud Ocupacional | D134: 700 | E134: 0 | F134: 700 | G134: 700 | H134: 700 | I134: 700 | J134: 700 | K134: 0 | L134: 0 | M134: 0 | N134: 0
A135: 8.4.01.03.01 | B135: Mobiliario | C135: Sub.- 3 Seguridad Y Salud Ocupacional | D135: 500 | E135: 3500 | F135: 4000 | G135: 2789.33 | H135: 2789.33 | I135: 0 | J135: 0 | K135: 1210.67 | L135: 4000 | M135: 2789.33 | N135: 30.27
A136: 8.4.01.04.01 | B136: Maquinaria Y Equipo | C136: Sub.- 3 Seguridad Y Salud Ocupacional | D136: 500 | E136: 0 | F136: 500 | G136: 0 | H136: 0 | I136: 0 | J136: 0 | K136: 500 | L136: 500 | M136: 0 | N136: 0
A137: 8.4.01.07.01 | B137: Equipos, Sistemas Y Paquetes Informáticos | C137: Sub.- 3 Seguridad Y Salud Ocupacional | D137: 1300 | E137: -1300 | F137: 0 | G137: 0 | H137: 0 | I137: 0 | J137: 0 | K137: 0 | L137: 0 | M137: 0 | N137: 0
A138: 8.4.01.13 | B138: Equipos Médicos | C138: Sub.- 3 Seguridad Y Salud Ocupacional | D138: 4500 | E138: -1250 | F138: 3250 | G138: 0 | H138: 0 | I138: 0 | J138: 0 | K138: 3250 | L138: 3250 | M138: 0 | N138: 100.00
A139: 5.1.01.05 | B139: Remuneraciones Unificadas | C139: Subgrupo 1.- Administracion Financiera | D139: 131112 | E139: 3360 | F139: 134472 | G139: 109149 | H139: 109149 | I139: 97927 | J139: 96286.2 | K139: 25323 | L139: 36545 | M139: 11222 | N139: 18.83
A140: 5.1.02.03.01 | B140: Decimotercer Sueldo (Personal Permanente) | C140: Subgrupo 1.- Administracion Financiera | D140: 10926 | E140: 560 | F140: 11486 | G140: 3499.13 | H140: 3499.13 | I140: 3128.63 | J140: 3128.63 | K140: 7986.87 | L140: 8357.37 | M140: 370.5 | N140: 69.54
A141: 5.1.02.03.02 | B141: Decimotercer Sueldo (Personal Eventual) | C141: Subgrupo 1.- Administracion Financiera | D141: 1442 | E141: 1442 | F141: 2884 | G141: 0 | H141: 0 | I141: 0 | J141: 0 | K141: 2884 | L141: 2884 | M141: 0 | N141: 100.00
A142: 5.1.02.04.01 | B142: Decimocuarto Sueldo (Personal Permanente) | C142: Subgrupo 1.- Administracion Financiera | D142: 6580 | E142: 0 | F142: 6580 | G142: 6542.5 | H142: 6542.5 | I142: 6314.29 | J142: 6314.29 | K142: 37.5 | L142: 265.71 | M142: 228.21 | N142: 0.57
A143: 5.1.02.04.02 | B143: Decimocuarto Sueldo (Personal Eventual) | C143: Subgrupo 1.- Administracion Financiera | D143: 940 | E143: 470 | F143: 1410 | G143: 1198.5 | H143: 1198.5 | I143: 1198.5 | J143: 1198.5 | K143: 211.5 | L143: 211.5 | M143: 0 | N143: 15.00
A144: 5.1.05.10 | B144: Servicios Personales Por Contrato | C144: Subgrupo 1.- Administracion Financiera | D144: 17304 | E144: 7464 | F144: 24768 | G144: 20370.47 | H144: 20370.47 | I144: 18306.47 | J144: 18015.22 | K144: 4397.53 | L144: 6461.53 | M144: 2064 | N144: 17.75
A145: 5.1.06.01.01 | B145: Aporte Patronal (Personal Permanente) | C145: Subgrupo 1.- Administracion Financiera | D145: 15274.55 | E145: 408.24 | F145: 15682.79 | G145: 12638.65 | H145: 12638.65 | I145: 11331.29 | J145: 10058.41 | K145: 3044.14 | L145: 4351.5 | M145: 1307.36 | N145: 19.41
A146: 5.1.06.01.02 | B146: Aporte Patronal (Personal Eventual) | C146: Subgrupo 1.- Administracion Financiera | D146: 2015.92 | E146: 820.02 | F146: 2835.94 | G146: 2373.19 | H146: 2373.19 | I146: 2132.73 | J146: 1892.27 | K146: 462.75 | L146: 703.21 | M146: 240.46 | N146: 16.32
A147: 5.1.06.02.01 | B147: Fondos De Reserva (Personal Permanente) | C147: Subgrupo 1.- Administracion Financiera | D147: 10926 | E147: 0 | F147: 10926 | G147: 8701.35 | H147: 8701.35 | I147: 7957.76 | J147: 7957.76 | K147: 2224.65 | L147: 2968.24 | M147: 743.59 | N147: 20.36
A148: 5.1.06.02.02 | B148: Fondos De Reserva (Personal Eventual) | C148: Subgrupo 1.- Administracion Financiera | D148: 1442 | E148: 622 | F148: 2064 | G148: 1696.75 | H148: 1696.75 | I148: 1524.83 | J148: 1524.83 | K148: 367.25 | L148: 539.17 | M148: 171.92 | N148: 17.79
A149: 5.1.07.06 | B149: Por Jubilación | C149: Subgrupo 1.- Administracion Financiera | D149: 53100 | E149: 0 | F149: 53100 | G149: 53100 | H149: 53100 | I149: 53100 | J149: 53100 | K149: 0 | L149: 0 | M149: 0 | N149: 0
A150: 5.1.07.07 | B150: Compensacion Por Vacaciones No Gozadas Por Cesacion De Funciones | C150: Subgrupo 1.- Administracion Financiera | D150: 2500 | E150: 0 | F150: 2500 | G150: 860.25 | H150: 860.25 | I150: 675.25 | J150: 675.25 | K150: 1639.75 | L150: 1824.75 | M150: 185 | N150: 0
A151: 5.3.01.01 | B151: Agua Potable | C151: Subgrupo 1.- Administracion Financiera | D151: 100 | E151: -100 | F151: 0 | G151: 0 | H151: 0 | I151: 0 | J151: 0 | K151: 0 | L151: 0 | M151: 0 | N151: 0
A152: 5.3.01.04 | B152: Energía Eléctrica | C152: Subgrupo 1.- Administracion Financiera | D152: 2500 | E152: -1990 | F152: 510 | G152: 507.53 | H152: 507.53 | I152: 501.33 | J152: 501.33 | K152: 2.47 | L152: 8.67 | M152: 6.2 | N152: 0.48
A153: 5.3.01.05 | B153: Telecomunicaciones | C153: Subgrupo 1.- Administracion Financiera | D153: 3500 | E153: 4780 | F153: 8280 | G153: 5003.4 | H153: 5003.4 | I153: 5003.4 | J153: 5003.4 | K153: 3276.6 | L153: 3276.6 | M153: 0 | N153: 39.57
A154: 5.3.01.06 | B154: Servicio De Correo | C154: Subgrupo 1.- Administracion Financiera | D154: 50 | E154: 0 | F154: 50 | G154: 6.96 | H154: 6.96 | I154: 6.96 | J154: 6.96 | K154: 43.04 | L154: 43.04 | M154: 0 | N154: 86.08
A155: 5.3.02.04 | B155: Edición, Impresión, Reproducción Y Publicaciones | C155: Subgrupo 1.- Administracion Financiera | D155: 5500 | E155: 0 | F155: 5500 | G155: 1363.2 | H155: 1363.2 | I155: 1363.2 | J155: 1363.2 | K155: 4136.8 | L155: 4136.8 | M155: 0 | N155: 0
A156: 5.3.02.07 | B156: Difusión, Información Y Publicidad | C156: Subgrupo 1.- Administracion Financiera | D156: 1100 | E156: -1100 | F156: 0 | G156: 0 | H156: 0 | I156: 0 | J156: 0 | K156: 0 | L156: 0 | M156: 0 | N156: 0
A157: 5.3.02.55 | B157: Combustible | C157: Subgrupo 1.- Administracion Financiera | D157: 800 | E157: -800 | F157: 0 | G157: 0 | H157: 0 | I157: 0 | J157: 0 | K157: 0 | L157: 0 | M157: 0 | N157: 0
A158: 5.3.03.01 | B158: Pasajes Al Interior | C158: Subgrupo 1.- Administracion Financiera | D158: 50 | E158: -50 | F158: 0 | G158: 0 | H158: 0 | I158: 0 | J158: 0 | K158: 0 | L158: 0 | M158: 0 | N158: 0
A159: 5.3.03.03 | B159: Viáticos Y Subsistencias En El Interior | C159: Subgrupo 1.- Administracion Financiera | D159: 100 | E159: -100 | F159: 0 | G159: 0 | H159: 0 | I159: 0 | J159: 0 | K159: 0 | L159: 0 | M159: 0 | N159: 0
A160: 5.3.04.03 | B160: Mobiliarios | C160: Subgrupo 1.- Administracion Financiera | D160: 600 | E160: -600 | F160: 0 | G160: 0 | H160: 0 | I160: 0 | J160: 0 | K160: 0 | L160: 0 | M160: 0 | N160: 0
A161: 5.3.06.01 | B161: Consultoría, Asesoría E Investigación Especializada | C161: Subgrupo 1.- Administracion Financiera | D161: 40926.9 | E161: -30926.9 | F161: 10000 | G161: 0 | H161: 0 | I161: 0 | J161: 0 | K161: 10000 | L161: 10000 | M161: 0 | N161: 0
A162: 5.3.06.12 | B162: Capacitación A Servidores Públicos | C162: Subgrupo 1.- Administracion Financiera | D162: 500 | E162: -500 | F162: 0 | G162: 0 | H162: 0 | I162: 0 | J162: 0 | K162: 0 | L162: 0 | M162: 0 | N162: 0
A163: 5.3.07.04 | B163: Mantenimiento Y Reparación De Equipos Y Sistemas Informáticos | C163: Subgrupo 1.- Administracion Financiera | D163: 100 | E163: -100 | F163: 0 | G163: 0 | H163: 0 | I163: 0 | J163: 0 | K163: 0 | L163: 0 | M163: 0 | N163: 0
A164: 5.3.08.02.01 | B164: Vestuario Y Lenceria | C164: Subgrupo 1.- Administracion Financiera | D164: 1700 | E164: 0 | F164: 1700 | G164: 1700 | H164: 1700 | I164: 1250.57 | J164: 1250.57 | K164: 0 | L164: 449.43 | M164: 449.43 | N164: 0
A165: 5.3.08.03 | B165: Lubricantes | C165: Subgrupo 1.- Administracion Financiera | D165: 50 | E165: -50 | F165: 0 | G165: 0 | H165: 0 | I165: 0 | J165: 0 | K165: 0 | L165: 0 | M165: 0 | N165: 0
A166: 5.3.08.04 | B166: Materiales de Oficina | C166: Subgrupo 1.- Administracion Financiera | D166: 17000 | E166: -2000 | F166: 15000 | G166: 14963.3 | H166: 14963.3 | I166: 11392.9 | J166: 11392.9 | K166: 36.7 | L166: 3607.1 | M166: 3570.4 | N166: 0
A167: 5.3.08.05 | B167: Materiales De Aseo | C167: Subgrupo 1.- Administracion Financiera | D167: 60 | E167: -60 | F167: 0 | G167: 0 | H167: 0 | I167: 0 | J167: 0 | K167: 0 | L167: 0 | M167: 0 | N167: 0
A168: 5.3.08.07 | B168: Materiales De Impresión, Fotografía, Reproducción Y Publicaciones | C168: Subgrupo 1.- Administracion Financiera | D168: 2000 | E168: 0 | F168: 2000 | G168: 869 | H168: 869 | I168: 868.99 | J168: 868.99 | K168: 1131 | L168: 1131.01 | M168: 0.01 | N168: 56.55
A169: 5.3.08.11 | B169: Materiales De Construcción, Eléctricos, Plomería Y Carpintería | C169: Subgrupo 1.- Administracion Financiera | D169: 250 | E169: 0 | F169: 250 | G169: 0 | H169: 0 | I169: 0 | J169: 0 | K169: 250 | L169: 250 | M169: 0 | N169: 100.00
A170: 5.3.08.13 | B170: Repuestos Y Accesorios | C170: Subgrupo 1.- Administracion Financiera | D170: 50 | E170: 0 | F170: 50 | G170: 39.13 | H170: 39.13 | I170: 39.13 | J170: 39.13 | K170: 10.87 | L170: 10.87 | M170: 0 | N170: 0
A171: 5.3.14.04 | B171: Maquinarias Y Equipos | C171: Subgrupo 1.- Administracion Financiera | D171: 10 | E171: -10 | F171: 0 | G171: 0 | H171: 0 | I171: 0 | J171: 0 | K171: 0 | L171: 0 | M171: 0 | N171: 0
A172: 5.3.14.06 | B172: Herramientas Y Equipos Menores | C172: Subgrupo 1.- Administracion Financiera | D172: 10 | E172: -10 | F172: 0 | G172: 0 | H172: 0 | I172: 0 | J172: 0 | K172: 0 | L172: 0 | M172: 0 | N172: 0
A173: 5.6.01.06 | B173: Descuentos, Comisiones y Otros Cargos en Títulos y Valores | C173: Subgrupo 1.- Administracion Financiera | D173: 5658.96 | E173: 20000 | F173: 25658.96 | G173: 23405.86 | H173: 23405.86 | I173: 21704.29 | J173: 21697.44 | K173: 2253.1 | L173: 3954.67 | M173: 1701.57 | N173: 8.78
A174: 5.7.02.01.01 | B174: Segruro (Personal) | C174: Subgrupo 1.- Administracion Financiera | D174: 800 | E174: 0 | F174: 800 | G174: 800 | H174: 800 | I174: 800 | J174: 800 | K174: 0 | L174: 0 | M174: 0 | N174: 0
A175: 5.7.02.01.02 | B175: Seguros (Bienes) | C175: Subgrupo 1.- Administracion Financiera | D175: 1000 | E175: 0 | F175: 1000 | G175: 1000 | H175: 1000 | I175: 1000 | J175: 1000 | K175: 0 | L175: 0 | M175: 0 | N175: 0
A176: 5.7.02.03 | B176: Comisiones Bancarias | C176: Subgrupo 1.- Administracion Financiera | D176: 1500 | E176: 0 | F176: 1500 | G176: 1075.74 | H176: 1075.74 | I176: 1055.19 | J176: 1055.19 | K176: 424.26 | L176: 444.81 | M176: 20.55 | N176: 28.28
A177: 5.7.02.19 | B177: Devoluciones | C177: Subgrupo 1.- Administracion Financiera | D177: 1500 | E177: -500 | F177: 1000 | G177: 398.78 | H177: 398.78 | I177: 348.78 | J177: 348.78 | K177: 601.22 | L177: 651.22 | M177: 50 | N177: 0
A178: 8.4.01.03.01 | B178: Mobiliario | C178: Subgrupo 1.- Administracion Financiera | D178: 3500 | E178: -3500 | F178: 0 | G178: 0 | H178: 0 | I178: 0 | J178: 0 | K178: 0 | L178: 0 | M178: 0 | N178: 0
A179: 8.4.01.07.01 | B179: Equipos, Sistemas Y Paquetes Informáticos | C179: Subgrupo 1.- Administracion Financiera | D179: 10000 | E179: 6240.38 | F179: 16240.38 | G179: 16240.38 | H179: 16240.38 | I179: 0 | J179: 0 | K179: 0 | L179: 16240.38 | M179: 16240.38 | N179: 0
A180: 5.1.01.05 | B180: Remuneraciones Unificadas | C180: Subgrupo 2.- Registro De La Propiedad | D180: 45048 | E180: 0 | F180: 45048 | G180: 36733.67 | H180: 36733.67 | I180: 32979.67 | J180: 32548.25 | K180: 8314.33 | L180: 12068.33 | M180: 3754 | N180: 18.46
A181: 5.1.02.03.01 | B181: Decimotercer Sueldo (Personal Permanente) | C181: Subgrupo 2.- Registro De La Propiedad | D181: 3754 | E181: 0 | F181: 3754 | G181: 276.97 | H181: 276.97 | I181: 276.97 | J181: 276.97 | K181: 3477.03 | L181: 3477.03 | M181: 0 | N181: 92.62
A182: 5.1.02.03.02 | B182: Decimotercer Sueldo (Personal Eventual) | C182: Subgrupo 2.- Registro De La Propiedad | D182: 622 | E182: 0 | F182: 622 | G182: 0 | H182: 0 | I182: 0 | J182: 0 | K182: 622 | L182: 622 | M182: 0 | N182: 100.00
A183: 5.1.02.04.01 | B183: Decimocuarto Sueldo (Personal Permanente) | C183: Subgrupo 2.- Registro De La Propiedad | D183: 1880 | E183: 0 | F183: 1880 | G183: 1880 | H183: 1880 | I183: 1880 | J183: 1880 | K183: 0 | L183: 0 | M183: 0 | N183: 0
A184: 5.1.02.04.02 | B184: Decimocuarto Sueldo (Personal Eventual) | C184: Subgrupo 2.- Registro De La Propiedad | D184: 470 | E184: 0 | F184: 470 | G184: 373.14 | H184: 373.14 | I184: 373.14 | J184: 373.14 | K184: 96.86 | L184: 96.86 | M184: 0 | N184: 20.61
A185: 5.1.05.10 | B185: Servicios Personales Por Contrato | C185: Subgrupo 2.- Registro De La Propiedad | D185: 7464 | E185: 0 | F185: 7464 | G185: 6220 | H185: 6220 | I185: 5598 | J185: 5527.41 | K185: 1244 | L185: 1866 | M185: 622 | N185: 16.67
A186: 5.1.05.12 | B186: Subrogacion | C186: Subgrupo 2.- Registro De La Propiedad | D186: 500 | E186: 0 | F186: 500 | G186: 0 | H186: 0 | I186: 0 | J186: 0 | K186: 500 | L186: 500 | M186: 0 | N186: 100.00
A187: 5.1.05.13 | B187: Encargos | C187: Subgrupo 2.- Registro De La Propiedad | D187: 500 | E187: 0 | F187: 500 | G187: 0 | H187: 0 | I187: 0 | J187: 0 | K187: 500 | L187: 500 | M187: 0 | N187: 100.00
A188: 5.1.06.01.01 | B188: Aporte Patronal (Personal Permanente) | C188: Subgrupo 2.- Registro De La Propiedad | D188: 5248.09 | E188: 0 | F188: 5248.09 | G188: 4279.48 | H188: 4279.48 | I188: 3842.14 | J188: 3361.27 | K188: 968.61 | L188: 1405.95 | M188: 437.34 | N188: 18.46
A189: 5.1.06.01.02 | B189: Aporte Patronal (Personal Eventual) | C189: Subgrupo 2.- Registro De La Propiedad | D189: 869.56 | E189: 0 | F189: 869.56 | G189: 724.6 | H189: 724.6 | I189: 652.14 | J189: 579.68 | K189: 144.96 | L189: 217.42 | M189: 72.46 | N189: 16.67
A190: 5.1.06.02.01 | B190: Fondos De Reserva (Personal Permanente) | C190: Subgrupo 2.- Registro De La Propiedad | D190: 3754 | E190: 0 | F190: 3754 | G190: 3298.45 | H190: 3298.45 | I190: 2983.08 | J190: 2983.08 | K190: 455.55 | L190: 770.92 | M190: 315.37 | N190: 12.14
A191: 5.1.06.02.02 | B191: Fondos De Reserva (Personal Eventual) | C191: Subgrupo 2.- Registro De La Propiedad | D191: 622 | E191: 0 | F191: 622 | G191: 0 | H191: 0 | I191: 0 | J191: 0 | K191: 622 | L191: 622 | M191: 0 | N191: 100.00
A192: 5.1.07.07 | B192: Compensacion Por Vacaciones No Gozadas Por Cesacion De Funciones | C192: Subgrupo 2.- Registro De La Propiedad | D192: 2500 | E192: -2000 | F192: 500 | G192: 314.67 | H192: 314.67 | I192: 314.67 | J192: 314.67 | K192: 185.33 | L192: 185.33 | M192: 0 | N192: 0
A193: 5.3.01.06 | B193: Servicio De Correo | C193: Subgrupo 2.- Registro De La Propiedad | D193: 100 | E193: -100 | F193: 0 | G193: 0 | H193: 0 | I193: 0 | J193: 0 | K193: 0 | L193: 0 | M193: 0 | N193: 0
A194: 5.3.02.04 | B194: Edición, Impresión, Reproducción Y Publicaciones | C194: Subgrupo 2.- Registro De La Propiedad | D194: 500 | E194: -200 | F194: 300 | G194: 48 | H194: 48 | I194: 48 | J194: 48 | K194: 252 | L194: 252 | M194: 0 | N194: =K194*100/F194 -> 84.00
A195: 5.3.02.07 | B195: Difusión, Información Y Publicidad | C195: Subgrupo 2.- Registro De La Propiedad | D195: 100 | E195: 0 | F195: 100 | G195: 0 | H195: 0 | I195: 0 | J195: 0 | K195: 100 | L195: 100 | M195: =G195-I195 -> 0 | N195: 0
A196: 5.3.02.30 | B196: Digtalización De Información Y Datos Públicos | C196: Subgrupo 2.- Registro De La Propiedad | D196: 3500 | E196: -3500 | F196: 0 | G196: 0 | H196: 0 | I196: 0 | J196: 0 | K196: 0 | L196: 0 | M196: 0 | N196: 0
A197: 5.3.02.55 | B197: Combustible | C197: Subgrupo 2.- Registro De La Propiedad | D197: 100 | E197: -100 | F197: 0 | G197: 0 | H197: 0 | I197: 0 | J197: 0 | K197: 0 | L197: 0 | M197: 0 | N197: 0
A198: 5.3.04.02 | B198: Edificios, Locales, Residencias y Cableado Estructurado (Instalación, Mantenimiento y Reparación) | C198: Subgrupo 2.- Registro De La Propiedad | D198: 100 | E198: -100 | F198: 0 | G198: 0 | H198: 0 | I198: 0 | J198: 0 | K198: 0 | L198: 0 | M198: 0 | N198: 0
A199: 5.3.06.01 | B199: Consultoría, Asesoría E Investigación Especializada | C199: Subgrupo 2.- Registro De La Propiedad | D199: 7000 | E199: 27000 | F199: 34000 | G199: 0 | H199: 0 | I199: 0 | J199: 0 | K199: 34000 | L199: 34000 | M199: 0 | N199: 0
A200: 5.3.06.12 | B200: Capacitación A Servidores Públicos | C200: Subgrupo 2.- Registro De La Propiedad | D200: 10 | E200: -10 | F200: 0 | G200: 0 | H200: 0 | I200: 0 | J200: 0 | K200: 0 | L200: 0 | M200: 0 | N200: 0
... 842 more rows

Sheet Metadatos
A1: FECHA ACTUALIZACIÓN DE LA INFORMACIÓN | B1: 2025-10-31
A2: PERIODICIDAD DE ACTUALIZACIÓN DE LA INFORMACIÓN | B2: MENSUAL
A3: UNIDAD POSEEDORA DE LA INFORMACIÓN | B3: ÁREA FINANIERA
A4: PERSONA RESPONSABLE DE LA UNIDAD POSEEDORA DE LA INFORMACIÓN | B4: MgS. Lino Novillo Chiriboga
A5: CORREO ELECTRÓNICO DE LA PERSONA RESPONSABLE DE LA UNIDAD POSEEDORA DE LA INFORMACIÓN | B5: gadmch.financiero@gmail.com
A6: NÚMERO TELEFÓNICO DE LA PERSONA RESPONSABLE DE LA UNIDAD POSEEDORA DE LA INFORMACIÓN | B6: (03) 2936-244-245 EXTENSIÓN 108
A7: LICENCIA | B7: CC-BY-4.0

Sheet Diccionario
A1: Institución | B1: GAD Municipal de Chunchi
A2: Descripcion | B2: Presupuesto Institucional
A3: Nombre del campo | B3: Descripcion de campo
A4: Cuenta | B4: Codigo identificador asignado a la categoria; descripcion o partida presupuestaria
A5: Categoria | B5: Categoria a la que pertenece el elemento presupuestario
A6: Descripcion | B6: Descripcion del elemento presupuestario
A7: Asignado | B7: Monto inicialmente asignado al elemento presupuestario
A8: Modificado | B8: Monto modificado o ajustado posteriormente al elemento presupuestario
A9: Codificado | B9: Monto codificado o asignado especificamente al elemento presupuestario
A10: Monto certificado | B10: Monto certificado o aprobado para el elemento presupuestario
A11: Comprometido | B11: Monto comprometido o reservado para el elemento presupuestario
A12: Devengado | B12: Monto devengado o registrado como gasto efectuado en relacion al elemento presupuestario
A13: Pagado | B13: Monto pagado o desembolsado hasta la fecha en relacion al elemento presupuestario
A14: Saldo por comprometer | B14: Saldo restante por comprometer o reservar para el elemento presupuestario
A15: Saldo por devengar | B15: Saldo restante por devengar o registrar como gasto en relacion al elemento presupuestario
A16: Saldo por pagar | B16: Saldo restante por pagar o desembolsar en relacion al elemento presupuestario
A17: Porcentaje de ejecucion | B17: Porcentaje de ejecucion o avance del gasto en relacion al monto total asignado al elemento presupuestario
